Cogmind - Beta 10.2 @@@ ROGUE MODE // 2021.08.13 @ 18:00:02 Player: Gilgameshx13 Result: Destroyed by S-10 Pest with Light Assault Rifle Performance ------------- Evolutions (1) 500 Regions Visited (2) 400 Robots Destroyed (17) 85 Value Destroyed (301) 301 Prototype IDs (0) 0 Alien Tech Used (0) 0 Bonus (0) 0 TOTAL SCORE: 1286 Bonus ------- None Cogmind --------- Core Integrity 0/400 Matter 31/300 Energy 100/100 System Corruption 0% Temperature Cool (0) Movement Core (300) Ox5 Location -9/Materials Parts ------- > --- POWER (1) -------- (None) > --- PROPULSION (2) --- (None) > --- UTILITY (4) ------ Large Storage Unit Utility Shielding > --- WEAPON (2) ------- (None) > --- INVENTORY (10) --- High-capacity Storage Unit Peak State ------------ > --- POWER ------------ Light Ion Engine > --- PROPULSION ------- Aluminum Leg Aluminum Leg > --- UTILITY ---------- Small Storage Unit Large Storage Unit > --- WEAPON ----------- Medium Laser Assault Rifle > --- INVENTORY -------- Light Ion Engine Light Armor Plating Small Laser Grenade Launcher [Rating: 7] Favorites ----------- Power Light Ion Engine Engine Light Ion Engine Propulsion Aluminum Leg Leg Aluminum Leg Utility Large Storage Unit Storage Large Storage Unit Protection Light Armor Plating Weapon Assault Rifle Energy Gun Medium Laser Ballistic Gun Assault Rifle Launcher Grenade Launcher Build | -11 -10 -9 ------- Run | Scr Mat Mat Slots Evolved 2 | . . 2 Power . | . . . Propulsion . | . . . Utility 2 | . . 2 Weapon . | . . . Parts Attached 16 | 6 3 7 Power 2 | 1 . 1 Engine 2 | 1 . 1 Core . | . . . Reactor . | . . . Propulsion 4 | 2 . 2 Treads . | . . . Leg 4 | 2 . 2 Wheel . | . . . Hover . | . . . Flight . | . . . Utility 5 | 1 2 2 Device . | . . . Storage 2 | 1 1 . Processor . | . . . Hackware . | . . . Protection 3 | . 1 2 Artifact . | . . . Weapon 5 | 2 1 2 Energy Gun 3 | 1 . 2 Energy Cannon . | . . . Ballistic Gun 1 | 1 . . Ballistic Cannon . | . . . Launcher 1 | . 1 . Special Weapon . | . . . Impact Weapon . | . . . Slashing Weapon . | . . . Piercing Weapon . | . . . Special Melee Weapon . | . . . Unidentified Prototypes . | . . . Parts Lost 11 | . . 11 Power 2 | . . 2 Propulsion 3 | . . 3 Utility 2 | . . 2 Weapon 4 | . . 4 Highest Loss Streak 11 | . . 11 Average Slot Usage (%) 76 | . 97 57 Engine 10 | . 14 7 Leg 21 | . 28 14 Storage 12 | . 14 11 Protection 10 | . 10 9 Energy Gun 4 | . 5 2 Ballistic Gun 10 | . 14 6 Launcher 6 | . 8 4 Naked Turns . | . . . Heaviest Build 27 | 11 27 27 Greatest Support 20 | 20 20 20 Greatest Overweight (x) 5 | 3 1 5 Average Overweight (x) 1 | 1 . 1 Largest Inventory Capacity 12 | 6 12 10 Average Capacity 9 | 5 9 10 Most Carried 6 | 4 6 6 Average Carried 3 | 1 3 3 Final Capacity 10 | 6 10 10 Final Carried 6 | 2 6 1 Class Distribution -------------------- 100% | Mutant Dominant Class ---------------- Mutant | -10/Materials Mutant | -9/Materials Resources | -11 -10 -9 ----------- Run | Scr Mat Mat Matter Collected 274 | 176 38 60 Remotely . | . . . Salvage Created 283 | . 73 210 Parts 34 | . 13 21 Haulers Intercepted . | . . . Recyclers Shooed . | . . . Parts Field Recycled . | . . . Retrieved Matter . | . . . Parts Self-Destructed . | . . . Prevented . | . . . Kills | -11 -10 -9 ------- Run | Scr Mat Mat Combat Hostiles Destroyed 14 | . 6 8 Guns 5 | . 1 4 AOE 9 | . 5 4 Classes Destroyed 5 | . 3 2 Worker 2 | . 1 1 Builder 1 | . . 1 Swarmer 9 | . 5 4 Grunt 4 | . 1 3 Sentry 1 | . . 1 Best Kill Streak 9 | . 4 9 Combat Bots Only 7 | . 3 7 Max Kills in Single Turn 3 | . 2 3 Gunslinging . | . . . Exploded 2 | . 2 2 Melee . | . . . Uniques/NPCs Destroyed . | . . . Combat | -11 -10 -9 -------- Run | Scr Mat Mat Damage Taken 1490 | . 130 1360 Core 428 | . 22 406 Absorbed by Shields . | . . . Core Remaining (%) 95 | 100 91 . Volleys Fired 34 | . 16 18 Largest 2 | . 2 2 Hottest 70 | . 70 70 Shots Fired 58 | . 24 34 Gun 44 | . 17 27 Cannon . | . . . Launcher 14 | . 7 7 Special . | . . . Kinetic 34 | . 16 18 Thermal 10 | . 1 9 Explosive 14 | . 7 7 Electromagnetic . | . . . Robot Hit Streak 6 | . 2 6 Robot Miss Streak 4 | . 4 4 Penetration Max . | . . . Secondary Targets 1 | . . 1 Max Gunslinging Chain 1 | . . 1 Shots Hit Robots 24 | . 5 19 Core Hits 25 | . 7 18 Critical Hits 1 | . . 1 Critical Kills . | . . . Critical Parts Destroyed 1 | . . 1 Melee Attacks . | . . . Impact . | . . . Slashing . | . . . Piercing . | . . . Sneak Attacks . | . . . Combat Hostiles . | . . . Follow-up Attacks . | . . . Damage Inflicted 894 | . 378 516 Guns 310 | . 56 254 Cannons . | . . . Explosions 579 | . 322 257 Melee . | . . . Ramming 5 | . . 5 Kinetic 209 | . 56 153 Thermal 101 | . . 101 Explosive 579 | . 322 257 Electromagnetic . | . . . Impact . | . . . Slashing . | . . . Piercing . | . . . Highest Corruption . | . . . Average Corruption . | . . . Corruption Purged . | . . . Overload Shots . | . . . Overflow Damage 52 | . 39 13 Projectiles . | . . . Explosions 52 | . 39 13 Melee . | . . . Knockbacks . | . . . Impact . | . . . Kinetic . | . . . Secondary . | . . . Self-Inflicted Damage 38 | . 14 24 Shots 2 | . 1 1 Rammed 1 | . . 1 Targets Rammed 1 | . . 1 Kicked . | . . . Crushed . | . . . Highest Temperature 95 | . 18 95 Average Temperature 32 | . 9 34 Received Heat Transfer 447 | . . 447 Siege Activations . | . . . Robots Corrupted . | . . . Combat Hostiles . | . . . Parts Fried . | . . . Impact Corruptions . | . . . Robots Melted . | . . . Combat Hostiles . | . . . Parts Melted . | . . . Heat Transferred 296 | . . 296 Parts Sabotaged . | . . . Parts Stolen . | . . . Parts Stripped . | . . . Power Chain Reactions . | . . . Missiles Intercepted . | . . . Alert | -11 -10 -9 ------- Run | Scr Mat Mat Peak Influence 268 | . 185 268 Initial 78 | . . 78 Average 107 | . 62 185 Maximum Alert Level 1 | . . 1 Low Security (%) 78 | 100 100 49 Level 1 21 | . . 50 Level 2 . | . . . Level 3 . | . . . Level 4 . | . . . Level 5 . | . . . High Security . | . . . Max Security . | . . . Squads Dispatched 4 | . 1 3 Investigation 1 | . . 1 Extermination . | . . . Reinforcement 3 | . 1 2 Assault . | . . . Garrison . | . . . Intercept . | . . . Construction Impeded 1 | . . 1 Haulers Reinforced . | . . . Stealth | -11 -10 -9 --------- Run | Scr Mat Mat Distress Signals 5 | . 3 2 Communications Jammed . | . . . Distress Signals . | . . . Times Spotted 31 | . 9 22 Peak Tracking Total 10 | . 4 10 Tactical Retreats 2 | . 1 1 Traps | -11 -10 -9 ------- Run | Scr Mat Mat Traps Triggered 1 | . . 1 Indirectly . | . . . Trap Hack Attempts . | . . . Triggered . | . . . Disarmed . | . . . Reprogrammed . | . . . Reused . | . . . Traps Extracted . | . . . Installed . | . . . Triggered . | . . . Machines | -11 -10 -9 ---------- Run | Scr Mat Mat Machines Disabled 1 | . . 1 Max in Single Turn 1 | . . 1 Machines Sabotaged . | . . . Garrisons Compromised . | . . . Overloaded Fab Kills . | . . . Fab Network Shutdowns . | . . . Hacking | -11 -10 -9 --------- Run | Scr Mat Mat Machines Accessed . | . . . Terminals . | . . . Fabricators . | . . . Repair Stations . | . . . Recycling Units . | . . . Scanalyzers . | . . . Garrison Access . | . . . Total Hacks . | . . . Successful . | . . . Failed . | . . . Catastrophic . | . . . Database Lockouts . | . . . Manual . | . . . Terminals . | . . . Fabricators . | . . . Repair Stations . | . . . Recycling Units . | . . . Scanalyzers . | . . . Garrison Access . | . . . Terminal Hacks . | . . . Fabricator Hacks . | . . . Repair Station Hacks . | . . . Recycling Unit Hacks . | . . . Scanalyzer . | . . . Garrison Access Hacks . | . . . Unauthorized Hacks . | . . . Terminals . | . . . Fabricators . | . . . Repair Stations . | . . . Recycling Units . | . . . Scanalyzers . | . . . Garrison Access . | . . . Data Cores Recovered . | . . . Used . | . . . Hacking Detections . | . . . Full Trace Events . | . . . Feedback Events . | . . . Feedback Blocked . | . . . Robot Schematics Acquired . | . . . Robots Built . | . . . Matter . | . . . Time . | . . . Total Robot Build Rating . | . . . Part Schematics Acquired . | . . . Parts Built . | . . . Matter . | . . . Time . | . . . Total Part Build Rating . | . . . Parts Repaired . | . . . Time . | . . . Parts Recycled . | . . . Recycled Matter . | . . . Retrieved Matter . | . . . Retrieved Components . | . . . Parts Scanalyzed . | . . . Part Schematics Acquired . | . . . Parts Damaged . | . . . Bothacking | -11 -10 -9 ------------ Run | Scr Mat Mat Used RIF Installer . | . . . Robots Hacked . | . . . Non-combat . | . . . Combat . | . . . Robot Hacks Applied . | . . . Relay Couplers Released . | . . . Robots Rewired . | . . . Allies Hacked . | . . . Hacks Repelled . | . . . Allies | -11 -10 -9 -------- Run | Scr Mat Mat Total Allies . | . . . Largest Group . | . . . Highest-Rated Group . | . . . Highest-Rated Ally . | . . . Total Orders . | . . . Ally Attacks . | . . . Total Damage . | . . . Kills . | . . . Allies Corrupted . | . . . Allies Melted . | . . . Intel | -11 -10 -9 ------- Run | Scr Mat Mat Robot Analysis Total . | . . . Derelict Logs Recovered . | . . . Drone Launches . | . . . Drone Recoveries . | . . . Exploration | -11 -10 -9 ------------- Run | Scr Mat Mat Turns Passed 614 | 87 261 266 Spaces Moved 312 | 53 149 110 Core 47 | 25 . 22 Treads . | . . . Legs 265 | 28 149 88 Wheels . | . . . Hover . | . . . Flight . | . . . Fastest Speed 50 | 50 120 120 Average Speed 156 | 138 141 183 Slowest Speed 300 | 200 150 300 Overloaded Moves . | . . . Propulsion Burnouts . | . . . Robots Hopped . | . . . Cave-ins Triggered . | . . . Exploration Rate (%) 16 | 5 27 18 Regions Visited 2 Branch Regions . Pre-discovered Areas . | . . . Known Exits Taken . | . . . Unknown Exits Taken 2 | 1 1 . Scrap Searched . | . . . Spaces Dug . | . . . Terrain Destroyed 98 | . 52 46 Melee . | . . . Projectile . | . . . AOE 98 | . 52 46 Terrain Rammed . | . . . Walls Destroyed . | . . . Machines Disabled . | . . . Actions | -11 -10 -9 --------- Run | Scr Mat Mat Total 379 | 66 174 139 Wait . | . . . Move 310 | 52 148 110 Hop . | . . . Pick Up 16 | 8 6 2 Fast Attach . | . . . Attach 13 | 6 1 6 Detach . | . . . Swap 3 | . 2 1 Drop 2 | . 1 1 Fire 34 | . 16 18 Melee . | . . . Ram . | . . . Kick 1 | . . 1 Crush . | . . . Escape Stasis . | . . . Rewire . | . . . Trap . | . . . Miscellaneous . | . . . Route ------- -11/Scrapyard -10/Materials -9/Materials History --------- Turn | Location | Event 23 | -11/Scrapyard | Discovered new exit (range 16) 88 | -11/Scrapyard | Entered Materials 309 | -10/Materials | Build established: Mutant 334 | -10/Materials | Discovered new exit (range 5) 349 | -10/Materials | Entered another Materials area 349 | -9/Materials | Evolved 2 slots: Utility x2 513 | -9/Materials | Destroyed 7 combat bots 554 | -9/Materials | Core integrity fell below 50% 579 | -9/Materials | Lost 11 parts (2p3n2u4w) 600 | -9/Materials | Core integrity fell below 20% 615 | -9/Materials | Destroyed by S-10 Pest with Light Assault Rifle Last Messages --------------- U-05 Engineer lays Concrete. K-01 Serf collects debris. Acquired Utility Shielding. U-05 Engineer lays Concrete. K-01 Serf collects debris. U-05 Engineer lays Concrete. K-01 Serf collects debris. U-05 Engineer builds a Wall. Aluminum Leg destroyed. U-05 Engineer builds a Wall. K-01 Serf collects debris. Lgt. Ion Engine destroyed. K-01 Serf collects debris. Sml. Laser destroyed. Acquired Hcp. Storage Unit. K-01 Serf collects debris. Aluminum Leg destroyed. S-10 Pest destroyed. K-01 Serf collects debris. W-16 Scout sends out distress signal. Map ----- +----------------------------------------------------+ | ?????????????????????????????????????????????????? | | ?????????????????????????????????????????????????? | | ?????????????????????????????????????????????????? | | ?????????????????????????????????????????????????? | | ?????????????????????????????????????????????????? | | ?????????????????????????????????????????????????? | | ?????????????????????????????????????????????????? | | ?????????????????????????????????????????????????? | | ?????????????????????????????????????????????????? | | ?????????????????????????????????????????????????? | | ?????????????????????????????????????????????????? | | ?????????????????????????????????????????????????? | | ?????????????????????????????????????###??????##?? | | ????????????????????????????????????? ????? ??? | | ????????????????????????????????????? ????? #??? | | ????????????????????????????????????? ???? ???? | | ?????????????????????????????????????# #??? ????? | | ???????????????????????????????????? # ####+#####? | | ??????????????????????????????????? # # #? | | ????????????????????????????????? # # """ #? | | ???????????????????????????????? ?# # """ #? | | ???????????????????############ ???# # """ #? | | ???????????????????# g ?????# / #? | | ???????????????????# #??????# # """ #? | | ???????????????????# gssg######## # """ #? | | ???????????????????+ @g g g # """ #? | | ???????????????????# ######## ######## # #? | | ????????????????????????????# #??????# #####/##+#? | | ????????????????????????????# #??????# #???# #? | | ????????????????????????????# #??????# #???# #? | | ????????????????????????????# #??????# ##### #? | | ????????????????????????????# #??????+ #? | | ????????????????????????????# #??????# #? | | ????????????????????????????# ######## != ## | | ???????????????????####?##### !!=%= | | ???????????????????"" ###### !! | | ???????????????????"" # | | ????????????????????? + % | | ????????????????????? # % | | ?????????????????????? # | | | ?????????????????????? # !% """ ############ | | ???????????????######### ! """ #??????????? | | ????????????? % """ #??????????? | | ?????????????????########+=#= #??????????? | | ????????????????????# # #??????????? | | ????????????????????# # ###????????? | | ????????????????????# ####### #### ########## | | ????????????????????# #???## ## | | ????????????????????# *[##### ##### | | ????????????????????# = | +----------------------------------------------------+ Best States ------------- Heat Dissipation 28 Energy Generation 10 Energy Capacity 125 Matter Stores 216 Matter Capacity 300 Sight Range 16 Terrain Scan Density 10 Armor Coverage 150 Utility Shielding 33 Evasion (%) 40 Item Schematics ----------------- None Robot Schematics ------------------ None Fabricated ------------ Nothing Alien Tech Used ----------------- None Achievements -------------- None Challenges ------------ None Game ------ Seed GammaLightTriangulator Manual? 0 Play Time 00:08:25 Cumulative 14.6 hours Start 2021.08.13 @ 17:53:48 End 2021.08.13 @ 18:00:02 Sessions 1 Manual Loads 0 Difficulty Rogue Special Mode None Game No. 34 Rogue 14 Adventurer 20 Explorer 0 Win Type - Total 1 Types 1/0/0/0/0/0/0/0/0 Lore% 14 Gallery% 38 Achievement% 26 Wizard Run 0 Options --------- ASCII 0 Keyboard 0 Movement Arrows Keybinds 0 Fullscreen 1 Font 18/SmallcapsGlow Map View 76x50 Tactical HUD 0 Map Filters NONE Filters NONE Steam 1 RUN: d53b93fe-d0a3-457f-b7ef-6a7ffecc722d